fUST/lending_fUST_20250924
["ID","MTS","AMOUNT","RATE_DAILY","PERIOD"]
[387412421,1758719461257,-480.0,0.00021369,2]
[387412422,1758719461266,-480.0,0.00021369,2]
[387412423,1758719461276,-480.0,0.00021369,2]
[387412424,1758719461285,-899.66,0.00021369,2]
[387412425,1758719461295,-480.0,0.00021369,2]
[387412426,1758719461304,-480.0,0.00021369,2]
[387412427,1758719461314,-166.93072688,0.00021369,2]
[387412428,1758719461323,-428.61,0.00021369,2]
[387412429,1758719461333,-480.13,0.00021369,2]
[387412430,1758719461342,-519.16,0.00021369,2]
[387412431,1758719461352,-480.0,0.00021369,2]
[387412432,1758719461361,-480.0,0.00021369,2]
[387412433,1758719461371,-480.0,0.00021369,2]
[387412434,1758719461381,-854.65,0.00021369,2]
[387412435,1758719461391,-480.0,0.00021369,2]
[387412436,1758719461400,-398.92144457,0.00021369,2]
[387412437,1758719461410,-480.0,0.00021369,2]
[387412438,1758719461419,-1587.51,0.00021369,2]
[387412439,1758719461429,-480.0,0.00021369,2]
[387412440,1758719461439,-1160.7,0.00021369,2]
[387412441,1758719461449,-4044.07,0.00021369,2]
[387412442,1758719461461,-810.46,0.00021369,2]
[387412443,1758719461471,-480.0,0.00021369,2]
[387412444,1758719461481,-611.17,0.00021369,2]
[387412445,1758719461490,-638.46,0.00021369,2]
[387412446,1758719461501,-2214.51,0.00021369,2]
[387412447,1758719461511,-1230.73,0.00021369,2]
[387412448,1758719461521,-872.86,0.00021369,2]
[387412449,1758719461532,-1779.43,0.00021369,2]
[387412450,1758719461544,-480.0,0.00021369,2]
[387412451,1758719461553,-480.0,0.00021369,2]
[387412452,1758719461563,-558.58,0.00021369,2]
[387412453,1758719461572,-480.0,0.00021369,2]
[387412454,1758719461582,-826.49,0.00021369,2]
[387412455,1758719461591,-480.0,0.00021369,2]
[387412456,1758719461601,-936.44,0.00021369,2]
[387412457,1758719461611,-480.0,0.00021369,2]
[387412458,1758719461621,-480.0,0.00021369,2]
[387412459,1758719461630,-480.0,0.00021369,2]
[387412460,1758719461639,-1066.15,0.00021369,2]
[387412461,1758719461649,-669.52,0.00021369,2]
[387412462,1758719461659,-731.84,0.00021369,2]
[387412463,1758719461670,-480.0,0.00021369,2]
[387412464,1758719461679,-480.0,0.00021369,2]
[387412465,1758719461688,-480.0,0.00021369,2]
[387412466,1758719461698,-480.0,0.00021369,2]
[387412467,1758719461708,-631.9,0.00021369,2]
[387412468,1758719461718,-480.0,0.00021369,2]
[387412469,1758719461728,-480.0,0.00021369,2]
[387412470,1758719461737,-480.0,0.00021369,2]
[387412471,1758719461747,-480.0,0.00021369,2]
[387412472,1758719461757,-480.0,0.00021369,2]
[387412473,1758719461766,-480.0,0.00021369,2]
[387412474,1758719461776,-2335.85,0.00021369,2]
[387412475,1758719461785,-1222.83,0.00021369,2]
[387412476,1758719461795,-480.0,0.00021369,2]
[387412477,1758719461805,-480.0,0.00021369,2]
[387412478,1758719461816,-480.0,0.00021369,2]
[387412479,1758719461826,-1549.36,0.00021369,2]
[387412480,1758719461836,-480.0,0.00021369,2]
[387412481,1758719461845,-415.8769964,0.00021369,2]
[387412482,1758719461855,-652.74,0.00021369,2]
[387412483,1758719461865,-480.0,0.00021369,2]
[387412484,1758719461875,-480.0,0.00021369,2]
[387412485,1758719461885,-746.35,0.00021369,2]
[387412486,1758719461895,-500.87,0.00021369,2]
[387412487,1758719461904,-1113.86,0.00021369,2]
[387412488,1758719461914,-197.20123464,0.00021369,2]
[387412489,1758719461924,-480.0,0.00021369,2]
[387412490,1758719461934,-480.0,0.00021369,2]
[387412491,1758719461944,-711.85,0.00021369,2]
[387412492,1758719461954,-480.0,0.00021369,2]
[387412493,1758719461965,-480.0,0.00021369,2]
[387412494,1758719461975,-1326.7,0.00021369,2]
[387412495,1758719461985,-897.86,0.00021369,2]
[387412496,1758719461995,-605.0,0.0002137,2]
[387412497,1758719462004,-500.0,0.0002137,2]
[387412498,1758719462014,-360.0,0.00021371,2]
[387412499,1758719462024,-359.22761131,0.00021427,2]
[387412500,1758719462034,-640.94002777,0.00021452,2]
[387412501,1758719462044,-1561.44050714,0.00021525,2]
[387412502,1758719462054,-500.0,0.00021525,2]
[387412503,1758719462063,-168.0,0.00021605,2]
[387412504,1758719462073,-314.43405764,0.0002163,2]
[387412505,1758719462082,-480.0,0.00021643,2]
[387412506,1758719462092,-480.0,0.00021643,2]
[387412507,1758719462102,-386.19271967,0.00021643,2]
[387412508,1758719462250,-123.11728033,0.00021643,2]
[387412509,1758719462260,-494.19026466,0.00021643,2]
[387412510,1758719462270,-480.0,0.00021643,2]
[387412511,1758719462280,-480.0,0.00021643,2]
[387412512,1758719462290,-22.33245501,0.00021643,2]
[387412513,1758719462302,-457.66754499,0.00021643,2]
[387412514,1758719462312,-211.68062098,0.00021643,2]
[387412515,1758719462321,-480.0,0.00021643,2]
[387412516,1758719462331,-280.76317981,0.00021643,2]
[387412517,1758719462341,-480.0,0.00021643,2]
[387412518,1758719462351,-480.0,0.00021643,2]
[387412519,1758719462361,-899.66,0.00021643,2]
[387412520,1758719462370,-480.0,0.00021643,2]
[387412521,1758719462380,-480.0,0.00021643,2]
[387412522,1758719462389,-480.13,0.00021643,2]
[387412523,1758719462399,-519.16,0.00021643,2]
[387412524,1758719462409,-480.0,0.00021643,2]
[387412525,1758719462419,-480.0,0.00021643,2]
[387412526,1758719462515,-854.65,0.00021643,2]
[387412527,1758719462526,-564.3404882,0.00021643,2]
[387412528,1758719462536,-1587.51,0.00021643,2]
[387412529,1758719462546,-1160.7,0.00021643,2]
[387412530,1758719462556,-4044.07,0.00021643,2]
[387412531,1758719462566,-810.46,0.00021643,2]
[387412532,1758719462576,-480.0,0.00021643,2]
[387412533,1758719462585,-611.17,0.00021643,2]
[387412534,1758719462595,-638.46,0.00021643,2]
[387412535,1758719462605,-2214.51,0.00021643,2]
[387412536,1758719462615,-1230.73,0.00021643,2]
[387412537,1758719462624,-872.86,0.00021643,2]
[387412538,1758719462634,-1779.43,0.00021643,2]
[387412539,1758719462643,-480.0,0.00021643,2]
[387412540,1758719462654,-480.0,0.00021643,2]
[387412541,1758719462663,-558.58,0.00021643,2]
[387412542,1758719462673,-309.13,0.00021643,2]
[387412543,1758719462682,-826.49,0.00021643,2]
[387412544,1758719462692,-480.0,0.00021643,2]
[387412545,1758719462702,-936.44,0.00021643,2]
[387412546,1758719462712,-480.0,0.00021643,2]
[387412547,1758719462722,-480.0,0.00021643,2]
[387412548,1758719462732,-480.0,0.00021643,2]
[387412549,1758719462742,-1066.15,0.00021643,2]
[387412550,1758719462751,-669.52,0.00021643,2]
[387412551,1758719462761,-480.0,0.00021643,2]
[387412552,1758719462771,-731.84,0.00021643,2]
[387412553,1758719462780,-460.76106768,0.00021643,2]
[387412554,1758719462790,-480.0,0.00021643,2]
[387412555,1758719462800,-631.9,0.00021643,2]
[387412556,1758719462810,-480.0,0.00021643,2]
[387412557,1758719462822,-151.0,0.00021643,2]
[387412558,1758719462831,-480.0,0.00021643,2]
[387412559,1758719462841,-480.0,0.00021643,2]
[387412560,1758719462851,-480.0,0.00021643,2]
[387412561,1758719462861,-2335.85,0.00021643,2]
[387412562,1758719462871,-1222.83,0.00021643,2]
[387412563,1758719462881,-183.5042642,0.00021643,2]
[387412564,1758719462891,-480.0,0.00021643,2]
[387412565,1758719462901,-159.540982,0.00021643,2]
[387412566,1758719462912,-480.0,0.00021643,2]
[387412567,1758719462922,-1549.36,0.00021643,2]
[387412568,1758719462932,-480.0,0.00021643,2]
[387412569,1758719462942,-652.74,0.00021643,2]
[387412570,1758719462951,-480.0,0.00021643,2]
[387412571,1758719462962,-295.29812948,0.00021643,2]
[387412572,1758719462976,-451.05187052,0.00021643,2]
[387412573,1758719462986,-500.87,0.00021643,2]
[387412574,1758719462996,-1113.86,0.00021643,2]
[387412575,1758719463006,-480.0,0.00021643,2]
[387412576,1758719463015,-480.0,0.00021643,2]
[387412577,1758719463025,-711.85,0.00021643,2]
[387412578,1758719463035,-236.47,0.00021643,2]
[387412579,1758719463045,-180.020066,0.00021643,2]
[387412580,1758719463055,-480.0,0.00021643,2]
[387412581,1758719463065,-1326.7,0.00021643,2]
[387412582,1758719463075,-605.0,0.00021644,2]
[387412583,1758719463085,-500.0,0.00021644,2]
[387412584,1758719463094,-1000.0,0.00021652,2]
[387412585,1758719463103,-501.00043887,0.00021652,2]
[387412586,1758719463112,-417.15472785,0.00021701,2]
[387412587,1758719463122,-160.0,0.00021701,2]
[387412588,1758719463132,-160.0,0.00021701,2]
[387412589,1758719463142,-233.62170814,0.00021701,2]
[387412590,1758719463152,-532.2324375,0.00021701,2]
[387412591,1758719463162,-160.0,0.00021701,2]
[387412592,1758719463172,-160.0,0.00021701,2]
[387412593,1758719463182,-160.0,0.00021701,2]
[387412594,1758719463191,-4584.0,0.00021716,2]
[387412595,1758719463201,-153.0,0.00021726,2]
[387412596,1758719463211,-153.0,0.00021726,2]
[387412597,1758719463221,-618.41826506,0.00021735,2]
[387412598,1758719463230,-1000.0,0.00021735,2]
[387412599,1758719463239,-502.27075849,0.00021735,2]
[387412600,1758719463249,-500.0,0.00021735,2]
[387412601,1758719463259,-574.83810759,0.00021735,2]
[387412602,1758719463269,-500.0,0.00021735,2]
[387412603,1758719463280,-776.56931734,0.00021735,2]
[387412604,1758719463289,-151.0,0.00021817,2]
[387412605,1758719463299,-480.0,0.00021917,2]
[387412606,1758719463309,-480.0,0.00021917,2]
[387412607,1758719463319,-509.31,0.00021917,2]
[387412608,1758719463329,-480.0,0.00021917,2]
[387412609,1758719463339,-480.0,0.00021917,2]
[387412610,1758719463349,-317.38,0.00021917,2]
[387412611,1758719463359,-480.0,0.00021917,2]
[387412612,1758719463368,-480.0,0.00021917,2]
[387412613,1758719463378,-480.0,0.00021917,2]
[387412614,1758719463389,-899.66,0.00021917,2]
[387412615,1758719463399,-480.0,0.00021917,2]
[387412616,1758719463410,-480.13,0.00021917,2]
[387412617,1758719463420,-519.16,0.00021917,2]
[387412618,1758719463430,-480.0,0.00021917,2]
[387412619,1758719463440,-423.02249271,0.00021917,2]
[387412620,1758719463453,-56.97750729,0.00021917,2]
[387412621,1758719463465,-854.65,0.00021917,2]
[387412622,1758719463476,-1372.57028048,0.00021917,2]
[387412623,1758719463488,-214.93971952,0.00021917,2]
[387412624,1758719463497,-151.0,0.00021917,2]
[387412625,1758719463509,-151.0,0.00021917,2]
[387412626,1758719463519,-1160.7,0.00021917,2]
[387412627,1758719463529,-2054.17117542,0.00021917,2]
[387412628,1758719463542,-371.10201164,0.00021917,2]
[387412629,1758719463554,-484.42076106,0.00021917,2]
[387412630,1758719463566,-1029.90528088,0.00021917,2]
[387412631,1758719463765,-0.02235568,0.00019178,2]
[387412632,1758719463776,-339.77994086,0.00019178,2]
[387412633,1758719463788,-140.19770346,0.00019178,2]
[387412634,1758719463798,-485.35193479,0.00019452,2]
[387412635,1758719463807,-490.81,0.00019575,2]
[387412636,1758719463817,-480.0,0.00020547,2]
[387412637,1758719463827,-480.0,0.00020821,2]
[387412638,1758719463836,-897.86,0.00021643,2]
[387412639,1758719463846,-104.470771,0.00021917,2]
[387412640,1758719463856,-614.02703545,0.00021917,2]
[387412641,1758719463867,-196.43296455,0.00021917,2]
[387412642,1758719463877,-480.0,0.00021917,2]
[387412643,1758719463886,-4.58502632,0.00021917,2]
[387412644,1758719463897,-429.42624312,0.00021917,2]
[387412645,1758719463911,-177.15873056,0.00021917,2]
[387412646,1758719463920,-638.46,0.00021917,2]
[387412647,1758719463930,-2214.51,0.00021917,2]
[387412648,1758719463940,-872.86,0.00021917,2]
[387412649,1758719463950,-1230.73,0.00021917,2]
[387412650,1758719463960,-1779.43,0.00021917,2]
[387412651,1758719463970,-480.0,0.00021917,2]
[387412652,1758719463980,-151.0,0.00021917,2]
[387412653,1758719463990,-576.67,0.00021917,2]
[387412654,1758719464000,-558.58,0.00021917,2]
[387412655,1758719464009,-826.49,0.00021917,2]
[387412656,1758719464019,-480.0,0.00021917,2]
[387412657,1758719464028,-936.44,0.00021917,2]
[387412658,1758719464037,-480.0,0.00021917,2]
[387412659,1758719464047,-480.0,0.00021917,2]
[387412660,1758719464057,-1066.15,0.00021917,2]
[387412661,1758719464066,-669.52,0.00021917,2]
[387412662,1758719464077,-480.0,0.00021917,2]
[387412663,1758719464087,-731.84,0.00021917,2]
[387412664,1758719464097,-480.0,0.00021917,2]
[387412665,1758719464107,-631.9,0.00021917,2]
[387412666,1758719464117,-480.0,0.00021917,2]
[387412667,1758719464126,-480.0,0.00021917,2]
[387412668,1758719464136,-480.0,0.00021917,2]
[387412669,1758719464146,-480.0,0.00021917,2]
[387412670,1758719464155,-2335.85,0.00021917,2]
[387412671,1758719464165,-1222.83,0.00021917,2]
[387412672,1758719464175,-480.0,0.00021917,2]
[387412673,1758719464185,-480.0,0.00021917,2]
[387412674,1758719464194,-480.0,0.00021917,2]
[387412675,1758719464204,-1549.36,0.00021917,2]
[387412676,1758719464213,-652.74,0.00021917,2]
[387412677,1758719464223,-480.0,0.00021917,2]
[387412678,1758719464232,-746.35,0.00021917,2]
[387412679,1758719464242,-500.87,0.00021917,2]
[387412680,1758719464251,-1113.86,0.00021917,2]
[387412681,1758719464261,-480.0,0.00021917,2]
[387412682,1758719464271,-480.0,0.00021917,2]
[387412683,1758719464283,-711.85,0.00021917,2]
[387412684,1758719464292,-480.0,0.00021917,2]
[387412685,1758719464301,-1326.7,0.00021917,2]
[387412686,1758719464311,-897.86,0.00021917,2]
[387412687,1758719464320,-605.0,0.00021918,2]
[387412688,1758719464330,-500.0,0.00021918,2]
[387412689,1758719464340,-151.0,0.00021918,2]
[387412690,1758719464349,-151.0,0.00021918,2]
[387412691,1758719464359,-151.0,0.00021918,2]
[387412692,1758719464368,-151.0,0.00021918,2]
[387412693,1758719464379,-151.0,0.00021918,2]
[387412694,1758719464388,-151.0,0.00021918,2]
[387412695,1758719464398,-219.384576,0.00021918,2]
[387412696,1758719464408,-151.0,0.00021918,2]
[387412697,1758719464418,-151.0,0.00021918,2]
[387412698,1758719464427,-225.0,0.00021918,2]
[387412699,1758719464437,-500.0,0.00021918,2]
[387412700,1758719464452,-460.0,0.00021919,2]
[387412701,1758719464472,-153.0,0.00021945,2]
[387412702,1758719464489,-168.0,0.00022023,2]
[387412703,1758719464498,-634.0,0.00022038,2]
[387412704,1758719464508,-2159.0,0.00022038,2]
[387412705,1758719464518,-3395.40197437,0.00022044,2]
[387412706,1758719464528,-168.0,0.00022066,2]
[387412707,1758719464538,-1012.6192814,0.00022073,2]
[387412708,1758719464547,-1080.1423418,0.00022136,2]
[387412709,1758719464557,-4171.4575018,0.00022191,2]
[387412710,1758719464567,-401.10613733,0.00022191,2]
[387412711,1758719464576,-480.0,0.00022191,2]
[387412712,1758719464586,-509.31,0.00022191,2]
[387412713,1758719464595,-480.0,0.00022191,2]
[387412714,1758719464605,-276.86,0.00022191,2]
[387412715,1758719464615,-480.0,0.00022191,2]
[387412716,1758719464626,-480.0,0.00022191,2]
[387412717,1758719464635,-480.0,0.00022191,2]
[387412718,1758719464645,-899.66,0.00022191,2]
[387412719,1758719464655,-480.0,0.00022191,2]
[387412720,1758719464665,-542.44254824,0.00022191,2]
[387412721,1758719464674,-480.13,0.00022191,2]
[387412722,1758719464684,-480.0,0.00022191,2]
[387412723,1758719464695,-519.16,0.00022191,2]
[387412724,1758719464704,-480.0,0.00022191,2]
[387412725,1758719464714,-854.65,0.00022191,2]
[387412726,1758719464723,-1587.51,0.00022191,2]
[387412727,1758719464733,-1160.7,0.00022191,2]
[387412728,1758719464743,-2229.38324906,0.00022191,2]
[387412729,1758719464925,-981.63,0.00020507,2]
[387412730,1758719464935,-480.0,0.00021095,2]
[387412731,1758719464945,-480.0,0.00021369,2]
[387412732,1758719464954,-1472.44,0.0002144,2]
[387412733,1758719464964,-480.0,0.00021643,2]
[387412734,1758719464974,-480.0,0.00021917,2]
[387412735,1758719464984,-1814.68675094,0.00022191,2]
[387412736,1758719464994,-810.46,0.00022191,2]
[387412737,1758719465004,-480.0,0.00022191,2]
[387412738,1758719465013,-359.82131079,0.00022191,2]
[387412739,1758719465023,-1439.28524314,0.00022191,2]
[387412740,1758719465032,-611.17,0.00022191,2]
[387412741,1758719465041,-3235.15340527,0.00022191,2]
[387412742,1758719465050,-638.46,0.00022191,2]
[387412743,1758719465059,-2214.51,0.00022191,2]
[387412744,1758719465069,-872.86,0.00022191,2]
[387412745,1758719465078,-1230.73,0.00022191,2]
[387412746,1758719465088,-1779.43,0.00022191,2]
[387412747,1758719465097,-480.0,0.00022191,2]
[387412748,1758719465106,-558.58,0.00022191,2]
[387412749,1758719465115,-826.49,0.00022191,2]
[387412750,1758719465125,-480.0,0.00022191,2]
[387412751,1758719465135,-936.44,0.00022191,2]
[387412752,1758719465145,-480.0,0.00022191,2]
[387412753,1758719465154,-480.0,0.00022191,2]
[387412754,1758719465163,-1066.15,0.00022191,2]
[387412755,1758719465173,-669.52,0.00022191,2]
[387412756,1758719465182,-480.0,0.00022191,2]
[387412757,1758719465191,-731.84,0.00022191,2]
[387412758,1758719465200,-480.0,0.00022191,2]
[387412759,1758719465209,-631.9,0.00022191,2]
[387412760,1758719465219,-480.0,0.00022191,2]
[387412761,1758719465228,-442.06,0.00022191,2]
[387412762,1758719465238,-480.0,0.00022191,2]
[387412763,1758719465248,-480.0,0.00022191,2]
[387412764,1758719465257,-2335.85,0.00022191,2]
[387412765,1758719465267,-1222.83,0.00022191,2]
[387412766,1758719465276,-480.0,0.00022191,2]
[387412767,1758719465286,-480.0,0.00022191,2]
[387412768,1758719465295,-177.28883437,0.00022191,2]
[387412769,1758719465305,-1549.36,0.00022191,2]
[387412770,1758719465314,-652.74,0.00022191,2]
[387412771,1758719465324,-480.0,0.00022191,2]
[387412772,1758719465333,-746.35,0.00022191,2]
[387412773,1758719465342,-500.87,0.00022191,2]
[387412774,1758719465353,-1113.86,0.00022191,2]
[387412775,1758719465362,-480.0,0.00022191,2]
[387412776,1758719465371,-480.0,0.00022191,2]
[387412777,1758719465382,-711.85,0.00022191,2]
[387412778,1758719465391,-480.0,0.00022191,2]
[387412779,1758719465400,-1326.7,0.00022191,2]
[387412780,1758719465410,-897.86,0.00022191,2]
[387412781,1758719465420,-605.0,0.00022192,2]
[387412782,1758719465430,-255.0,0.00022192,2]
[387412783,1758719465440,-647.48733986,0.00022192,2]
[387412784,1758719465450,-1507.34165857,0.000222,2]
[387412785,1758719465459,-168.0,0.00022256,2]
[387412786,1758719465473,-168.0,0.00022264,2]
[387412787,1758719465483,-1500.0,0.00022283,2]
[387412788,1758719465493,-500.0,0.00022365,2]
[387412789,1758719465503,-500.0,0.00022368,2]
[387412790,1758719465514,-1963.26,0.00022372,2]
[387412791,1758719465524,-500.0,0.00022437,2]
[387412792,1758719465533,-168.0,0.00022444,2]
[387412793,1758719465543,-168.0,0.00022455,2]
[387412794,1758719465552,-480.0,0.00022465,2]
[387412795,1758719465562,-509.31,0.00022465,2]
[387412796,1758719465571,-151.0,0.00022465,7]
[387412797,1758719465581,-480.0,0.00022465,2]
[387412798,1758719465590,-480.0,0.00022465,2]
[387412799,1758719465600,-480.0,0.00022465,2]
[387412800,1758719465609,-480.0,0.00022465,2]
[387412801,1758719465618,-899.66,0.00022465,2]
[387412802,1758719465627,-480.0,0.00022465,2]
[387412803,1758719465637,-480.13,0.00022465,2]
[387412804,1758719465646,-519.16,0.00022465,2]
[387412805,1758719465656,-480.0,0.00022465,2]
[387412806,1758719465666,-192.41602545,0.00022465,2]
[387412807,1758719465676,-854.65,0.00022465,2]
[387412808,1758719465685,-1587.51,0.00022465,2]
[387412809,1758719465694,-1160.7,0.00022465,2]
[387412810,1758719465704,-4044.07,0.00022465,2]
[387412811,1758719465714,-810.46,0.00022465,2]
[387412812,1758719465724,-480.0,0.00022465,2]
[387412813,1758719465734,-611.17,0.00022465,2]
[387412814,1758719465743,-638.46,0.00022465,2]
[387412815,1758719465753,-1097.35377462,0.00022465,2]
[387412816,1758719465766,-1117.15622538,0.00022465,2]
[387412817,1758719465777,-872.86,0.00022465,2]
[387412818,1758719465786,-1230.73,0.00022465,2]
[387412819,1758719465796,-1281.51642277,0.00022465,2]
[387412820,1758719465807,-465.0,0.00022465,2]
[387412821,1758719465819,-32.91357723,0.00022465,2]
[387412822,1758719465829,-480.0,0.00022465,2]
[387412823,1758719465839,-558.58,0.00022465,2]
[387412824,1758719465853,-111.22642273,0.00022465,2]
[387412825,1758719465965,-715.26357727,0.00022465,2]
[387412826,1758719465975,-278.5052337,0.00022465,2]
[387412827,1758719465984,-936.44,0.00022465,2]
[387412828,1758719465993,-480.0,0.00022465,2]
[387412829,1758719466003,-152.7909494,0.00022465,2]
[387412830,1758719466012,-1066.15,0.00022465,2]
[387412831,1758719466022,-669.52,0.00022465,2]
[387412832,1758719466031,-480.0,0.00022465,2]
[387412833,1758719466041,-731.84,0.00022465,2]
[387412834,1758719466051,-480.0,0.00022465,2]
[387412835,1758719466061,-631.9,0.00022465,2]
[387412836,1758719466070,-480.0,0.00022465,2]
[387412837,1758719466080,-480.0,0.00022465,2]
[387412838,1758719466089,-480.0,0.00022465,2]
[387412839,1758719466099,-2335.85,0.00022465,2]
[387412840,1758719466108,-1222.83,0.00022465,2]
[387412841,1758719466118,-480.0,0.00022465,2]
[387412842,1758719466127,-480.0,0.00022465,2]
[387412843,1758719466137,-1549.36,0.00022465,2]
[387412844,1758719466146,-652.74,0.00022465,2]
[387412845,1758719466156,-480.0,0.00022465,2]
[387412846,1758719466165,-746.35,0.00022465,2]
[387412847,1758719466175,-500.87,0.00022465,2]
[387412848,1758719466184,-1113.86,0.00022465,2]
[387412849,1758719466194,-480.0,0.00022465,2]
[387412850,1758719466203,-480.0,0.00022465,2]
[387412851,1758719466212,-711.85,0.00022465,2]
[387412852,1758719466222,-437.70056565,0.00022465,2]
[387412853,1758719466232,-1326.7,0.00022465,2]
[387412854,1758719466242,-897.86,0.00022465,2]
[387412855,1758719466251,-605.0,0.00022466,2]
[387412856,1758719466261,-560.0,0.00022467,2]
[387412857,1758719466270,-168.0,0.00022474,2]
[387412858,1758719466279,-500.0,0.00022483,2]
[387412859,1758719466289,-600.0,0.00022502,2]
[387412860,1758719466298,-500.0,0.00022572,2]
[387412861,1758719466308,-3000.0,0.000226,2]
[387412862,1758719466318,-3000.0,0.0002261,2]
[387412863,1758719466327,-500.0,0.00022612,2]
[387412864,1758719466337,-3000.0,0.0002262,2]
[387412865,1758719466346,-3000.0,0.0002263,2]
[387412866,1758719466356,-3000.0,0.0002264,2]
[387412867,1758719466365,-3000.0,0.0002265,2]
[387412868,1758719466374,-289.767,0.00022659,2]
[387412869,1758719466384,-3000.0,0.0002266,2]
[387412870,1758719466393,-587.0,0.00022662,2]
[387412871,1758719466402,-3000.0,0.0002267,2]
[387412872,1758719466411,-4498.966679,0.0002268,2]
[387412873,1758719466421,-241.0123337,0.00022697,2]
[387412874,1758719466430,-500.0,0.00022723,2]
[387412875,1758719466440,-600.0,0.00022737,2]
[387412876,1758719466450,-480.0,0.00022739,2]
[387412877,1758719466459,-509.31,0.00022739,2]
[387412878,1758719466470,-480.0,0.00022739,2]
[387412879,1758719466482,-480.0,0.00022739,2]
[387412880,1758719466492,-480.0,0.00022739,2]
[387412881,1758719466502,-480.0,0.00022739,2]
[387412882,1758719466511,-899.66,0.00022739,2]
[387412883,1758719466520,-480.0,0.00022739,2]
[387412884,1758719466530,-480.13,0.00022739,2]
[387412885,1758719466539,-519.16,0.00022739,2]
[387412886,1758719466548,-480.0,0.00022739,2]
[387412887,1758719466559,-854.65,0.00022739,2]
[387412888,1758719466569,-1587.51,0.00022739,2]
[387412889,1758719466578,-1160.7,0.00022739,2]
[387412890,1758719466588,-4044.07,0.00022739,2]
[387412891,1758719466598,-480.0,0.00022739,2]
[387412892,1758719466607,-611.17,0.00022739,2]
[387412893,1758719466617,-638.46,0.00022739,2]
[387412894,1758719466626,-2214.51,0.00022739,2]
[387412895,1758719466637,-872.86,0.00022739,2]
[387412896,1758719466647,-1230.73,0.00022739,2]
[387412897,1758719466657,-1779.43,0.00022739,2]
[387412898,1758719466666,-480.0,0.00022739,2]
[387412899,1758719466676,-558.58,0.00022739,2]
[387412900,1758719466685,-826.49,0.00022739,2]
[387412901,1758719466694,-936.44,0.00022739,2]
[387412902,1758719466704,-1066.15,0.00022739,2]
[387412903,1758719466714,-669.52,0.00022739,2]
[387412904,1758719466724,-480.0,0.00022739,2]
[387412905,1758719466734,-731.84,0.00022739,2]
[387412906,1758719466744,-480.0,0.00022739,2]
[387412907,1758719466754,-631.9,0.00022739,2]
[387412908,1758719466764,-480.0,0.00022739,2]
[387412909,1758719466773,-480.0,0.00022739,2]
[387412910,1758719466783,-480.0,0.00022739,2]
[387412911,1758719466792,-2335.85,0.00022739,2]
[387412912,1758719466802,-1222.83,0.00022739,2]
[387412913,1758719466811,-480.0,0.00022739,2]
[387412914,1758719466820,-293.94,0.00022739,2]
[387412915,1758719466829,-1549.36,0.00022739,2]
[387412916,1758719466839,-652.74,0.00022739,2]
[387412917,1758719466849,-480.0,0.00022739,2]
[387412918,1758719466858,-746.35,0.00022739,2]
[387412919,1758719466868,-500.87,0.00022739,2]
[387412920,1758719466877,-1113.86,0.00022739,2]